Cogmind - Beta 16 @@@ ROGUE MODE // 2026.01.28 @ 20:57:48 Player: Carter Result: Destroyed by P-60 Hacker with Shock Rifle Performance ------------- Evolutions (3) 1500 Regions Visited (7) 1400 Robots Destroyed (69) 345 Value Destroyed (1993) 1993 Prototype IDs (6) 120 Alien Tech Used (0) 0 Bonus (144) 144 TOTAL SCORE: 5502 Bonus ------- High Alert Combat Kills 144 Cogmind --------- Core Integrity 0/700 Matter 285/300 Energy 82/100 System Corruption 8% Temperature Cool (0) Movement Walking (130) Location -7/Factory Parts ------- > --- POWER (1) -------- (None) > --- PROPULSION (4) --- Titanium Leg > --- UTILITY (6) ------ (None) > --- WEAPON (2) ------- Improved EM Pulse Cannon > --- INVENTORY (5) ---- Faulty Enhanced Nuclear Core Medium Armor Plating Peak State ------------ > --- POWER ------------ Improved Ion Engine > --- PROPULSION ------- Heavy Treads Heavy Treads > --- UTILITY ---------- Heavy Insulated Plating Damper Plating > --- WEAPON ----------- Tiamat Missile Launcher Katana > --- INVENTORY -------- Light Ion Engine Drone Bay Drone Bay Drone Bay Heavy Particle Cannon [Rating: 71] Favorites ----------- Power Improved Ion Engine Engine Improved Ion Engine Power Core Enhanced Nuclear Core Propulsion Light Treads Treads Light Treads Leg Titanium Leg Hover Unit Gravmag System Flight Unit Improved Flight Unit Utility Small Storage Unit Device Field Recycling Unit Storage Small Storage Unit Processor Improved Melee Analysis Suite Hackware Advanced Hacking Suite Protection Damper Plating Weapon Katana Energy Gun Medium Laser Energy Cannon Plasma Cannon Ballistic Gun High-powered Shotgun Launcher Mini Grenade Launcher Slashing Weapon Katana Build | -11 -10 -9 -8 -8 -7 -7 -7 ------- Run | Yrd Mat Mat Mat Sto Fac Was Fac Slots Evolved 6 | . . 2 2 . 2 . . Power . | . . . . . . . . Propulsion 2 | . . 2 . . . . . Utility 4 | . . . 2 . 2 . . Weapon . | . . . . . . . . Parts Attached 64 | 7 4 12 2 9 1 6 23 Power 9 | 1 1 2 1 1 . . 3 Engine 7 | 1 1 2 1 1 . . 1 Core 2 | . . . . . . . 2 Reactor . | . . . . . . . . Propulsion 19 | 2 1 6 . 2 . 2 6 Treads 9 | 2 1 1 . 2 . 2 1 Leg 1 | . . . . . . . 1 Wheel . | . . . . . . . . Hover 4 | . . . . . . . 4 Flight 5 | . . 5 . . . . . Utility 21 | 1 . 2 . 4 1 3 10 Device 8 | . . . . 4 1 . 3 Storage 2 | 1 . 1 . . . . . Processor 2 | . . 1 . . . . 1 Hackware 1 | . . . . . . 1 . Protection 8 | . . . . . . 2 6 Artifact . | . . . . . . . . Weapon 15 | 3 2 2 1 2 . 1 4 Energy Gun 2 | 2 . . . . . . . Energy Cannon 6 | . 1 . . 1 . . 4 Ballistic Gun 2 | 1 . 1 . . . . . Ballistic Cannon . | . . . . . . . . Launcher 4 | . 1 1 1 . . 1 . Special Weapon . | . . . . . . . . Impact Weapon . | . . . . . . . . Slashing Weapon 1 | . . . . 1 . . . Piercing Weapon . | . . . . . . . . Special Melee Weapon . | . . . . . . . . Unidentified Prototypes 6 | . . 2 . . . 1 3 Corrupted Parts 1 | . . . . . . . 1 System Corruption 4 | . . . . . . . 4 Parts Lost 29 | . 1 8 . 2 . . 18 Power 2 | . . . . . . . 2 Propulsion 12 | . . 6 . 2 . . 4 Utility 10 | . . . . . . . 10 Weapon 5 | . 1 2 . . . . 2 Highest Loss Streak 7 | . 1 2 . 2 . . 7 To Critical Strikes 1 | . . . . . . . 1 Average Backups 3 | . 1 5 2 1 2 3 3 Power 1 | . . 1 1 . 1 1 . Propulsion . | . . 1 . . . . . Utility . | . . . . . . 1 1 Weapon 1 | . . 2 1 . 1 1 . Tool/Special . | . . . . . . . . Unused Backups . | . . . . . . . . Power . | . . . . . . . . Propulsion . | . . . . . . . . Utility . | . . . . . . . . Weapon . | . . . . . . . . Tool/Special . | . . . . . . . . Average Slot Usage (%) 69 | . 82 80 65 55 70 70 63 Engine 8 | . 14 11 9 9 7 7 5 Treads 13 | . 28 22 9 11 15 15 6 Hover 4 | . . . . . . . 9 Flight 2 | . . 5 18 3 . . . Device 7 | . . . . 14 31 22 9 Storage 7 | . 14 20 12 . . . . Hackware 2 | . . . . . . . 4 Protection 4 | . . . . . . 8 9 Energy Gun 1 | . 12 1 8 . . . . Energy Cannon 3 | . 5 3 9 3 . . 4 Ballistic Gun 2 | . . 6 . . . . . Launcher 5 | . 7 8 . 9 7 7 2 Slashing Weapon 3 | . . . . 4 7 7 5 Peak Build Rating 71 | 6 6 13 12 25 29 71 62 Average Rating 27 | 4 5 10 11 14 25 43 45 On Entrance 18 | . 6 6 12 9 25 29 62 Avg Prop Armor Cover (%) 8 | . . 10 13 . . . 5 Naked Turns . | . . . . . . . . Heaviest Build 70 | 14 14 23 22 29 31 70 69 Greatest Support 140 | 40 40 60 9 40 40 140 140 Greatest Overweight (x) 9 | . . 4 2 3 . . 9 Average Overweight (x) . | . . . 1 . . . 1 Largest Inventory Capacity 8 | 8 8 8 8 5 5 5 5 Average Capacity 6 | 7 8 8 5 5 5 5 5 Most Carried 8 | . 3 8 3 2 2 5 5 Average Carried 3 | . 1 5 1 1 2 3 3 Final Capacity 8 | 8 8 8 5 5 5 5 5 Final Carried 5 | . 3 2 . 2 2 5 2 Class Distribution -------------------- 65% | Mutant 34% | Scavenger-Mutant Dominant Class ---------------- Mutant | -10/Materials Mutant | -9/Materials Mutant | -8/Materials Scavenger-Mutant | -8/Storage Scavenger-Mutant | -7/Factory Scavenger-Mutant | -7/Waste Scavenger-Mutant | -7/Factory Resources | -11 -10 -9 -8 -8 -7 -7 -7 ----------- Run | Yrd Mat Mat Mat Sto Fac Was Fac Matter Collected 1315 | 122 91 554 . 111 . 116 321 Remotely . | . . . . . . . . Salvage Created 1708 | . 181 640 . 113 . . 774 Parts 114 | . 4 52 . 9 . . 49 Haulers Intercepted 2 | . . . . 1 . . 1 Recyclers Shooed 2 | . . 2 . . . . . Parts Field Recycled 9 | . . . . . . . 9 Retrieved Matter 105 | . . . . . . . 105 Parts Self-Destructed . | . . . . . . . . Prevented . | . . . . . . . . Parts Restored . | . . . . . . . . Kills | -11 -10 -9 -8 -8 -7 -7 -7 ------- Run | Yrd Mat Mat Mat Sto Fac Was Fac Combat Hostiles Destroyed 44 | . 3 23 . 2 . . 16 Melee 2 | . . . . . . . 2 Guns 7 | . . 7 . . . . . Cannons 11 | . 1 3 . 2 . . 5 AOE 24 | . 2 13 . . . . 9 Classes Destroyed 13 | . 3 5 . 1 . . 4 Worker 8 | . . 1 . . . . 7 Builder 6 | . . 3 . . . . 3 Tunneler 2 | . 1 . . . . . 1 Hauler 2 | . . . . 1 . . 1 Recycler 4 | . 1 2 . . . . 1 Mechanic 1 | . . . . . . . 1 Operator 1 | . . . . . . . 1 Watcher 1 | . . 1 . . . . . Swarmer 17 | . . 13 . . . . 4 Grunt 15 | . 3 4 . . . . 8 Duelist 1 | . . . . . . . 1 Sentry 9 | . . 6 . 2 . . 1 Programmer 2 | . . . . . . . 2 Best Kill Streak 16 | . 4 10 . 2 . . 16 Combat Bots Only 6 | . 2 5 . 1 . . 6 Max Kills in Single Turn 4 | . 2 4 . 2 . . 4 Gunslinging . | . . . . . . . . Exploded 4 | . 1 4 . . . . 3 Melee 1 | . . . . . . . 1 Uniques/NPCs Destroyed . | . . . . . . . . Combat | -11 -10 -9 -8 -8 -7 -7 -7 -------- Run | Yrd Mat Mat Mat Sto Fac Was Fac Hostile Shots Fired 461 | . 25 127 . 21 . . 288 Missed 120 | . 6 34 . 6 . . 74 Hits 341 | . 19 93 . 15 . . 214 Melee 1 | . . . . . . . 1 Projectile 340 | . 19 93 . 15 . . 213 AOE 1 | . . . . . . . 1 Critical Strikes 8 | . . 1 . 1 . . 6 Part Disruptions 1 | . . 1 . . . . . Damage Taken 5203 | . 300 1077 . 286 . . 3540 Core 984 | . 30 163 . 91 . . 700 Absorbed by Shields . | . . . . . . . . Ignored by Resistances 26 | . . . . . . . 26 Core Remaining (%) 82 | 100 88 59 . 83 . . . Volleys Fired 109 | . 10 47 . 6 . . 46 Largest 2 | . 2 2 . 2 . . 1 Hottest 110 | . 90 110 . 105 . . 80 Shots Fired 150 | . 16 75 . 12 . . 47 Gun 45 | . 8 37 . . . . . Cannon 54 | . 1 18 . 6 . . 29 Launcher 51 | . 7 20 . 6 . . 18 Special . | . . . . . . . . Kinetic 29 | . . 29 . . . . . Thermal 64 | . 4 26 . 6 . . 28 Explosive 51 | . 7 20 . 6 . . 18 Electromagnetic 6 | . 5 . . . . . 1 Robot Hit Streak 7 | . 5 7 . 4 . . 7 Robot Miss Streak 7 | . 2 7 . 2 . . 6 Penetration Max . | . . . . . . . . Secondary Targets . | . . . . . . . . Shots Hit Robots 104 | . 10 52 . 7 . . 35 Core Hits 111 | . 7 54 . 4 . . 46 Critical Kills . | . . . . . . . . Critical Parts Destroyed . | . . . . . . . . Critical Strikes . | . . . . . . . . Melee Attacks 12 | . . . . . . . 12 Impact . | . . . . . . . . Slashing 12 | . . . . . . . 12 Piercing . | . . . . . . . . Sneak Attacks 4 | . . . . . . . 4 Combat Hostiles . | . . . . . . . . Follow-up Attacks . | . . . . . . . . Damage Inflicted 5325 | 11 400 1859 . 195 . . 2860 Guns 584 | . 63 521 . . . . . Cannons 727 | . 17 192 . 100 . . 418 Explosions 3583 | . 320 1135 . 95 . . 2033 Melee 401 | . . . . . . . 401 Ramming 30 | 11 . 11 . . . . 8 Kinetic 432 | . . 432 . . . . . Thermal 1148 | . 43 281 . 100 . . 724 Explosive 3209 | . 320 1092 . 95 . . 1702 Electromagnetic 105 | . 37 43 . . . . 25 Impact . | . . . . . . . . Slashing 401 | . . . . . . . 401 Piercing . | . . . . . . . . Highest Corruption 8 | . . . . . . . 8 Average Corruption 4 | . . . . . . . 4 Corruption Purged . | . . . . . . . . Corruption Blocked . | . . . . . . . . Effects 23 | . . . . . . . 23 Message Errors 10 | . . . . . . . 10 Matter Fused 2 | . . . . . . . 2 Heat Flow Errors 2 | . . . . . . . 2 Energy Discharges 5 | . . . . . . . 5 Parts Rejected 1 | . . . . . . . 1 Parts Fused 1 | . . . . . . . 1 Data Loss (minor) 1 | . . . . . . . 1 Misfires 1 | . . . . . . . 1 Overload Shots . | . . . . . . . . Overflow Damage 162 | . 6 8 . 9 . . 139 Projectiles . | . . . . . . . . Explosions 112 | . 6 8 . 9 . . 89 Melee 50 | . . . . . . . 50 Knockbacks . | . . . . . . . . Impact . | . . . . . . . . Kinetic . | . . . . . . . . Secondary . | . . . . . . . . Self-Inflicted Damage 435 | . 48 151 . 65 . . 171 Shots 21 | . 4 8 . 2 . . 7 Rammed 10 | 3 . 4 . . . . 3 Targets Rammed 10 | 3 . 4 . . . . 3 Kicked . | . . . . . . . . Crushed . | . . . . . . . . Highest Temperature 587 | . 101 213 . 117 . . 587 Average Temperature 108 | . 61 67 . 60 . . 133 Received Heat Transfer 1215 | . 147 162 . 72 . . 834 Effects 10 | . . . . . . . 10 Shutdowns 2 | . . . . . . . 2 Energy Bleed 1 | . . . . . . . 1 Interference 2 | . . . . . . . 2 Matter Decay 3 | . . . . . . . 3 Short Circuit 2 | . . . . . . . 2 Siege Activations . | . . . . . . . . Martial Activations . | . . . . . . . . Shielding Activations . | . . . . . . . . Robots Disrupted . | . . . . . . . . Combat Hostiles . | . . . . . . . . Robots Corrupted . | . . . . . . . . Combat Hostiles . | . . . . . . . . Parts Fried . | . . . . . . . . Impact Corruptions . | . . . . . . . . Robots Melted . | . . . . . . . . Combat Hostiles . | . . . . . . . . Parts Melted 3 | . . . . . . . 3 Heat Transferred 1899 | . 111 666 . 148 . . 974 Parts Sabotaged . | . . . . . . . . Parts Stolen . | . . . . . . . . Parts Stripped . | . . . . . . . . Power Chain Reactions 1 | . . 1 . . . . . Alert | -11 -10 -9 -8 -8 -7 -7 -7 ------- Run | Yrd Mat Mat Mat Sto Fac Was Fac Maximum Alert Level 3 | . . 1 . 1 . . 3 Low Security (%) 57 | 100 100 66 100 85 100 100 27 Level 1 11 | . . 33 . 14 . . . Level 2 22 | . . . . . . . 51 Level 3 8 | . . . . . . . 20 Level 4 . | . . . . . . . . Level 5 . | . . . . . . . . High Security . | . . . . . . . . Max Security . | . . . . . . . . Peak Influence 777 | . 78 347 135 225 56 5 777 Initial 135 | . . 20 135 39 56 5 . Average 264 | . 32 116 118 144 36 . 497 Influence Increases 2315 | . 129 749 . 256 . . 1181 Destroy 0b10 Robot/C 880 | . 60 460 . 40 . . 320 Destroy 0b10 Robot/NC 125 | . 10 35 . 5 . . 75 Destroy Leader 236 | . 20 112 . 22 . . 82 Successful Hack 19 | . 5 . . . . . 14 Disable Machine 570 | . . 30 . 15 . . 525 Destroy Structure 260 | . 34 97 . 54 . . 75 Lose Combat Pursuer 225 | . . 15 . 120 . . 90 Influence Decreases 1724 | . 80 475 228 226 109 16 590 Entered New Map 353 | . . 29 188 56 69 11 . Time Decay 1091 | . 70 366 40 150 40 5 420 Lost Part 280 | . 10 80 . 20 . . 170 Squads Dispatched 10 | . 1 . . 1 . . 8 Investigation . | . . . . . . . . Extermination 3 | . . . . . . . 3 Reinforcement 6 | . 1 . . 1 . . 4 Assault 1 | . . . . . . . 1 Garrison . | . . . . . . . . Intercept . | . . . . . . . . Searches Triggered . | . . . . . . . . Construction Impeded 1 | . . . . . . . 1 Haulers Reinforced 1 | . . . . . . . 1 Active Scanning Responses . | . . . . . . . . Cargo Convoy Interrupts . | . . . . . . . . Stealth | -11 -10 -9 -8 -8 -7 -7 -7 --------- Run | Yrd Mat Mat Mat Sto Fac Was Fac Distress Signals 5 | . . 3 . . . . 2 Communications Jammed . | . . . . . . . . Distress Signals . | . . . . . . . . Times Spotted 88 | . 5 33 . 12 . . 38 Peak Tracking Total 9 | . 2 6 . 9 . . 5 Tactical Retreats 5 | . . 1 . 2 . . 2 Traps | -11 -10 -9 -8 -8 -7 -7 -7 ------- Run | Yrd Mat Mat Mat Sto Fac Was Fac Traps Triggered 3 | . . . . 1 1 . 1 Indirectly . | . . . . . . . . Trap Hack Attempts . | . . . . . . . . Triggered . | . . . . . . . . Disarmed . | . . . . . . . . Reprogrammed . | . . . . . . . . Reused . | . . . . . . . . Traps Extracted . | . . . . . . . . Installed . | . . . . . . . . Triggered . | . . . . . . . . Machines | -11 -10 -9 -8 -8 -7 -7 -7 ---------- Run | Yrd Mat Mat Mat Sto Fac Was Fac Machines Disabled 38 | . . 2 . 1 . . 35 Max in Single Turn 5 | . . 1 . 1 . . 5 Machines Repaired . | . . . . . . . . Machines Dismantled . | . . . . . . . . Machines Sabotaged . | . . . . . . . . Overloaded Fab Kills . | . . . . . . . . Hacking | -11 -10 -9 -8 -8 -7 -7 -7 --------- Run | Yrd Mat Mat Mat Sto Fac Was Fac Machines Accessed 5 | . 1 1 . 1 . . 2 Terminals 5 | . 1 1 . 1 . . 2 Fabricators . | . . . . . . . . Repair Stations . | . . . . . . . . Recycling Units . | . . . . . . . . Scanalyzers . | . . . . . . . . Garrison Access . | . . . . . . . . Total Hacks 5 | . 1 1 . 1 . . 2 Successful 3 | . 1 1 . . . . 1 Failed 2 | . . . . 1 . . 1 Catastrophic . | . . . . . . . . Database Lockouts . | . . . . . . . . Manual . | . . . . . . . . Terminals 5 | . 1 1 . 1 . . 2 Fabricators . | . . . . . . . . Repair Stations . | . . . . . . . . Recycling Units . | . . . . . . . . Scanalyzers . | . . . . . . . . Garrison Access . | . . . . . . . . Terminal Hacks 3 | . 1 1 . . . . 1 Alert Level 1 | . . 1 . . . . . Patrol Status 1 | . . . . . . . 1 Reinforcement Status 1 | . 1 . . . . . . Fabricator Hacks . | . . . . . . . . Repair Station Hacks . | . . . . . . . . Recycling Unit Hacks . | . . . . . . . . Scanalyzer . | . . . . . . . . Garrison Access Hacks . | . . . . . . . . Unauthorized Hacks . | . . . . . . . . Terminals . | . . . . . . . . Fabricators . | . . . . . . . . Repair Stations . | . . . . . . . . Recycling Units . | . . . . . . . . Scanalyzers . | . . . . . . . . Garrison Access . | . . . . . . . . Data Cores Recovered . | . . . . . . . . Used . | . . . . . . . . Hacking Detections 4 | . 1 1 . . . . 2 Full Trace Events . | . . . . . . . . Feedback Events . | . . . . . . . . Feedback Blocked . | . . . . . . . . Robot Schematics Acquired . | . . . . . . . . Robots Built . | . . . . . . . . Authchips . | . . . . . . . . Time . | . . . . . . . . Total Robot Build Rating . | . . . . . . . . Part Schematics Acquired . | . . . . . . . . Parts Built . | . . . . . . . . Authchips . | . . . . . . . . Time . | . . . . . . . . Total Part Build Rating . | . . . . . . . . Part Studies Acquired . | . . . . . . . . Parts Repaired . | . . . . . . . . Time . | . . . . . . . . Parts Recycled . | . . . . . . . . Recycled Matter . | . . . . . . . . Retrieved Matter . | . . . . . . . . Retrieved Components . | . . . . . . . . Parts Scanalyzed . | . . . . . . . . Part Schematics Acquired . | . . . . . . . . Parts Damaged . | . . . . . . . . Bothacking | -11 -10 -9 -8 -8 -7 -7 -7 ------------ Run | Yrd Mat Mat Mat Sto Fac Was Fac Used RIF Installer . | . . . . . . . . Robots Hacked . | . . . . . . . . Non-combat . | . . . . . . . . Combat . | . . . . . . . . Robot Hacks Applied . | . . . . . . . . Relay Couplers Released . | . . . . . . . . Fabnet Peak Effective % . | . . . . . . . . Robots Rewired . | . . . . . . . . Allies Hacked . | . . . . . . . . Hacks Repelled . | . . . . . . . . Allies | -11 -10 -9 -8 -8 -7 -7 -7 -------- Run | Yrd Mat Mat Mat Sto Fac Was Fac Total Allies 1 | . . . . . . 1 . Largest Group 1 | . . . . . . 1 1 Highest-Rated Group 31 | . . . . . . 31 31 Highest-Rated Ally 31 | . . . . . . 31 31 Total Orders . | . . . . . . . . Ally Attacks 3 | . . . . . . . 3 Total Damage 20 | . . . . . . . 20 Kills . | . . . . . . . . Allies Corrupted . | . . . . . . . . Allies Melted . | . . . . . . . . Intel | -11 -10 -9 -8 -8 -7 -7 -7 ------- Run | Yrd Mat Mat Mat Sto Fac Was Fac Active Infowar (turns) 318 | . . . . . . . 318 Seismic 318 | . . . . . . . 318 Robot Analysis Total . | . . . . . . . . Derelict Logs Recovered . | . . . . . . . . Drone Launches 6 | . . . . 6 . . . Drone Recoveries . | . . . . . . . . Exploration | -11 -10 -9 -8 -8 -7 -7 -7 ------------- Run | Yrd Mat Mat Mat Sto Fac Was Fac Turns Passed 3617 | 109 249 1061 84 317 96 158 1543 Spaces Moved 1828 | 63 136 509 52 280 56 90 642 Core 33 | 5 . . . 3 . . 25 Treads 1082 | 58 136 406 . 131 56 90 205 Legs 2 | . . . . . . . 2 Wheels . | . . . . . . . . Hover 410 | . . . . . . . 410 Flight 301 | . . 103 52 146 . . . Fastest Speed 37 | 50 160 108 112 37 160 160 48 Average Speed 163 | 151 160 177 150 98 160 160 185 Slowest Speed 500 | 160 160 340 207 200 160 160 500 Overloaded Moves . | . . . . . . . . Propulsion Burnouts . | . . . . . . . . Robots Hopped . | . . . . . . . . Potential Cave-ins . | . . . . . . . . Cave-ins Triggered . | . . . . . . . . Exploration Rate (%) 28 | 4 30 45 8 44 3 72 23 Regions Visited 7 Branch Regions 1 Pre-discovered Areas . | . . . . . . . . Known Exits Taken . | . . . . . . . . Unknown Exits Taken 5 | 1 1 1 1 1 . . . Scrap Searched . | . . . . . . . . Spaces Dug . | . . . . . . . . Terrain Destroyed 271 | . 33 108 . 51 . . 79 Melee . | . . . . . . . . Projectile 1 | . . . . 1 . . . AOE 270 | . 33 108 . 50 . . 79 Terrain Rammed . | . . . . . . . . Walls Destroyed . | . . . . . . . . Machines Disabled . | . . . . . . . . Actions | -11 -10 -9 -8 -8 -7 -7 -7 --------- Run | Yrd Mat Mat Mat Sto Fac Was Fac Total 2267 | 72 151 587 61 306 63 105 922 Wait 184 | . . . . 7 6 . 171 Move 1822 | 62 135 508 51 279 56 89 642 Hop . | . . . . . . . . Pick Up 9 | . 1 6 . 1 . . 1 Fast Attach 46 | 6 1 6 . 7 1 6 19 Attach 9 | . 1 6 2 . . . . Detach 14 | . 1 2 4 2 . 3 2 Swap 14 | 1 2 4 . 2 . 1 4 Drop 25 | . . 4 4 2 . 6 9 Fire 109 | . 10 47 . 6 . . 46 Melee 12 | . . . . . . . 12 Ram 4 | . . 1 . . . . 3 Kick . | . . . . . . . . Crush 6 | 3 . 3 . . . . . Escape Stasis 13 | . . . . . . . 13 Rewire . | . . . . . . . . Trap . | . . . . . . . . Miscellaneous . | . . . . . . . . Route ------- -11/Scrapyard -10/Materials -9/Materials -8/Materials -8/Storage -7/Factory -7/Waste -7/Factory History --------- Turn | Location | Event 56 | -11/Scrapyard | Discovered new exit (range 15) 110 | -11/Scrapyard | Entered Materials 318 | -10/Materials | Build established: Mutant 347 | -10/Materials | Discovered new exit (range 7) 359 | -10/Materials | Entered another Materials area 359 | -9/Materials | Evolved 2 slots: Propulsion x2 1369 | -9/Materials | Discovered new exit (range 4) 1420 | -9/Materials | Entered another Materials area 1420 | -8/Materials | Evolved 2 slots: Utility x2 1484 | -8/Materials | Discovered new exit (range 11) 1504 | -8/Materials | Entered Storage 1750 | -8/Storage | Discovered new exit (range 15) 1821 | -8/Storage | Entered Factory 1821 | -7/Factory | Accompanied by 6 allies 1821 | -7/Factory | Evolved 2 slots: Utility x2 1917 | -7/Factory | Sucked down chute 1917 | -7/Factory | Entered Waste 1917 | -7/Waste | The area was eerily silent 1918 | -7/Waste | Met a frightened Derelict 1924 | -7/Waste | Found Hvy. Insulated Plating 1945 | -7/Waste | Build established: Scavenger-Mutant 2012 | -7/Waste | 6 allies followed down the chute 2017 | -7/Waste | Discovered new exit (range 13) 2027 | -7/Waste | Found Damper Plating 2075 | -7/Waste | Entered Factory 2075 | -7/Factory | Accompanied by 1 ally 2854 | -7/Factory | Build established: Mutant 2875 | -7/Factory | First assault squad dispatched 3254 | -7/Factory | Lost 7 parts (1p2n3u1w) 3541 | -7/Factory | Build established: Scavenger-Mutant 3562 | -7/Factory | Core integrity fell below 50% 3592 | -7/Factory | Core integrity fell below 20% 3603 | -7/Factory | Lost 6 parts (1p1n3u1w) 3618 | -7/Factory | Destroyed by P-60 Hacker with Shock Rifle Last Messages --------------- 03555_ Imp. Airjet destroyed. 03555_ Plasma Cannon destroyed. 03557_ Med. Armor Plating destroyed. 03560_ R-06 Scavenger collects Autogun. 03561_ Penetrated by Slug. 03564_ R-06 Scavenger collects VTOL Module. 03564_ Imp. Deuterium Engine destroyed. 03570_ Imp. Light Armor Plating destroyed. 03572_ Seismic Detector destroyed. 03573_ Penetrated by Slug. 03576_ Slug penetrates Wall. 03594_ Acquired Imp. EM Pulse Cannon. 03603_ Imp. Heat Sink destroyed. 03607_ Imp. Melee Analysis Suite destroyed. 03608_ Field Recycling Unit destroyed. 03613_ System corrupted: Imp. EM Pulse Cannon rejected. 03614_ Acquired Titanium Leg. 03617_ P-60 Hacker resets S-27 Virus, system corruption cleaned. Map ----- +----------------------------------------------------+ | ?????# #???????????????????????????????????????? | | ##+### #???????????????????????????????????????? | | #???????????????????????????????????????? | | #???????????????????????????????????????? | | # #???????????????????????????????????????? | | # ##+###########???????????????????????????????? | | # # """"" !#???????????????????????????????? | | # ?# """"" #???????????????????????????????? | | # ?# """ #???????????????????????????????? | | + ??# #???????????????????????????????? | | # ?# %= #???? ?????????????????????????? | | # #######/######?? ""?????????????????????????? | | # ###### ""?????????????????????????? | | + ""?????????????????????????? | | # ??????????????????????? | | ##### ??????????????????????? | | ????# ##############?????#?????????????????? | | ????# #?????????????????h#?????????????????? | | ????# ##################/##????????????????? | | ????+ + s = #????????????????? | | ????# ###########ps]] #????????????????? | | ????# #?????????# ]] """ #????????????????? | | ????### #?????????# ]]] """ #????????????????? | | ??????# #?????????# """ #????????????????? | | ??????# #?????????#] #????????????????? | | ????? ?????????# @ #????????????????? | | ???? # ?????????# #????????????????? | | ???#### ?????????######+##+#????????????????? | | ??????# ????????????????????????????????????? | | ??????#+#####????????????????????????????????????? | | ?????????????????????????????????????????????????? | | ?????????????????????????????????????????????????? | | ?????????????????????????????????????????????????? | | ?????????????????????????????????????????????????? | | ?????????????????????????????????????????????????? | | ?????????????????????????????????????????????????? | | ?????????????????????????????????????????????????? | | ?????????????????????????????????????????????????? | | ?????????????????????????????????????????????????? | | ?????????????????????????????????????????????????? | | ?????????????????????????????????????????????????? | | ?????????????????????????????????????????????????? | | ?????????????????????????????????????????????????? | | ?????????????????????????????????????????????????? | | ?????????????????????????????????????????????????? | | ?????????????????????????????????????????????????? | | ?????????????????????????????????????????????????? | | ?????????????????????????????????????????????????? | | ?????????????????????????????????????????????????? | | ?????????????????????????????????????????????????? | +----------------------------------------------------+ Best States ------------- Heat Dissipation 48 Energy Generation 17 Energy Capacity 530 Matter Stores 300 Matter Capacity 300 Sight Range 16 Terrain Scan Density 85 Armor Coverage 2200 Resistance: EM 90 Melee Speed Boost 20 Evasion (%) 62 Melee Accuracy 6 Recoil Reduction 4 Offensive Hacking 14 Item Schematics ----------------- None Robot Schematics ------------------ None Fabricated ------------ Nothing Repaired ---------- Nothing Studied --------- None Alien Tech Used ----------------- None Achievements -------------- A Problem For Future Me Release The Drones! Well Done Challenges ------------ None Game ------ Seed ArmorRefineryMeganuke Manual? 0 Play Time 00:35:30 Cumulative 9.1 hours Start 2026.01.28 @ 20:25:20 End 2026.01.28 @ 20:57:48 Sessions 1 Manual Loads 0 Difficulty Rogue Special Mode None Game No. 19 Rogue 19 Adventurer 0 Explorer 0 Win Type - Total 0 Types 0/0/0/0/0/0/0/0/0/0 Lore% 3 Gallery% 17 Achievement% 12 Wizard Run 0 Options --------- Layout 2 ASCII 0 Keyboard 1 Movement Vi Keybinds 0 Fullscreen 1 Font 24/Smallcaps Map View 50x44 Zoom Use 39% Tactical HUD 1 Map Filters NONE Filters NONE Steam 1 RUN: 344e68ef-f388-45f8-bfeb-db6eb63bd095